fUSD/lending_fUSD_20241206
["ID","MTS","AMOUNT","RATE_DAILY","PERIOD"]
[344504240,1733519489823,-500.0,9.589e-05,2]
[344504241,1733519489832,-572.17,9.589e-05,2]
[344504242,1733519489841,-500.0,9.589e-05,2]
[344504243,1733519489851,-500.0,9.589e-05,2]
[344504244,1733519489861,-315.51602612,9.589e-05,2]
[344504245,1733519489875,-572.17,9.589e-05,2]
[344504246,1733519489884,-691.36,9.589e-05,2]
[344504247,1733519489894,-500.0,9.589e-05,2]
[344504248,1733519489904,-500.0,9.589e-05,2]
[344504249,1733519489915,-572.17,9.589e-05,2]
[344504250,1733519489926,-500.0,9.589e-05,2]
[344504251,1733519489937,-500.0,9.589e-05,2]
[344504252,1733519489949,-500.0,9.589e-05,2]
[344504253,1733519489959,-500.0,9.589e-05,2]
[344504254,1733519489970,-500.0,9.589e-05,2]
[344504255,1733519489980,-572.17,9.589e-05,2]
[344504256,1733519489990,-691.36,9.589e-05,2]
[344504257,1733519490000,-500.0,9.589e-05,2]
[344504258,1733519490010,-500.0,9.589e-05,2]
[344504259,1733519490020,-500.0,9.589e-05,2]
[344504260,1733519490029,-572.17,9.589e-05,2]
[344504261,1733519490039,-691.5942126,9.589e-05,2]
[344504262,1733519490048,-500.0,9.589e-05,2]
[344504263,1733519490057,-503.30186398,9.589e-05,2]
[344504264,1733519490066,-500.0,9.589e-05,2]
[344504265,1733519490076,-500.0,9.589e-05,2]
[344504266,1733519490086,-500.0,9.589e-05,2]
[344504267,1733519490095,-500.0,9.589e-05,2]
[344504268,1733519490105,-500.0,9.589e-05,2]
[344504269,1733519490114,-572.17,9.589e-05,2]
[344504270,1733519490123,-500.0,9.589e-05,2]
[344504271,1733519490133,-500.0,9.589e-05,2]
[344504272,1733519490143,-563.52622958,9.589e-05,2]
[344504273,1733519490152,-500.0,9.589e-05,2]
[344504274,1733519490162,-500.0,9.589e-05,2]
[344504275,1733519490172,-572.17,9.589e-05,2]
[344504276,1733519490182,-500.0,9.589e-05,2]
[344504277,1733519490191,-572.17,9.589e-05,2]
[344504278,1733519490201,-604.63868189,9.589e-05,2]
[344504279,1733519490210,-572.17,9.589e-05,2]
[344504280,1733519490220,-528.2,9.589e-05,2]
[344504281,1733519490229,-500.0,9.589e-05,2]
[344504282,1733519490239,-572.17,9.589e-05,2]
[344504283,1733519490250,-528.2,9.589e-05,2]
[344504284,1733519490259,-528.2,9.589e-05,2]
[344504285,1733519490268,-572.17,9.589e-05,2]
[344504286,1733519490277,-183.11770067,9.589e-05,2]
[344504287,1733519490287,-528.2,9.589e-05,2]
[344504288,1733519490296,-572.17,9.589e-05,2]
[344504289,1733519490305,-572.17,9.589e-05,2]
[344504290,1733519490315,-528.2,9.589e-05,2]
[344504291,1733519490325,-528.2,9.589e-05,2]
[344504292,1733519490335,-572.17,9.589e-05,2]
[344504293,1733519490345,-528.2,9.589e-05,2]
[344504294,1733519490355,-572.17,9.589e-05,2]
[344504295,1733519490365,-572.17,9.589e-05,2]
[344504296,1733519490375,-528.2,9.589e-05,2]
[344504297,1733519490385,-528.2,9.589e-05,2]
[344504298,1733519490394,-572.17,9.589e-05,2]
[344504299,1733519490403,-572.17,9.589e-05,2]
[344504300,1733519490412,-528.2,9.589e-05,2]
[344504301,1733519490423,-856.1,9.589e-05,2]
[344504302,1733519490432,-528.2,9.589e-05,2]
[344504303,1733519490441,-572.17,9.589e-05,2]
[344504304,1733519490450,-856.1,9.589e-05,2]
[344504305,1733519490460,-528.2,9.589e-05,2]
[344504306,1733519490469,-572.17,9.589e-05,2]
[344504307,1733519490479,-856.1,9.589e-05,2]
[344504308,1733519490488,-528.2,9.589e-05,2]
[344504309,1733519490499,-572.30616324,9.589e-05,2]
[344504310,1733519490509,-856.1,9.589e-05,2]
[344504311,1733519490519,-528.2,9.589e-05,2]
[344504312,1733519490528,-500.0,9.589e-05,2]
[344504313,1733519490537,-501.64395008,9.589e-05,2]
[344504314,1733519490547,-856.1,9.589e-05,2]
[344504315,1733519490556,-528.2,9.589e-05,2]
[344504316,1733519490567,-500.0,9.589e-05,2]
[344504317,1733519490576,-500.0,9.589e-05,2]
[344504318,1733519490586,-1355.71,9.589e-05,2]
[344504319,1733519490595,-856.1,9.589e-05,2]
[344504320,1733519490605,-500.0,9.589e-05,2]
[344504321,1733519490616,-856.1,9.589e-05,2]
[344504322,1733519490625,-339.91,9.589e-05,2]
[344504323,1733519490635,-1355.71,9.589e-05,2]
[344504324,1733519490645,-500.0,9.589e-05,2]
[344504325,1733519490654,-528.2,9.589e-05,2]
[344504326,1733519490664,-792.56,9.589e-05,2]
[344504327,1733519490674,-856.1,9.589e-05,2]
[344504328,1733519490683,-500.0,9.589e-05,2]
[344504329,1733519490692,-1355.71,9.589e-05,2]
[344504330,1733519490701,-528.2,9.589e-05,2]
[344504331,1733519490710,-792.56,9.589e-05,2]
[344504332,1733519490719,-856.1,9.589e-05,2]
[344504333,1733519490729,-1355.71,9.589e-05,2]
[344504334,1733519490740,-528.2,9.589e-05,2]
[344504335,1733519490751,-792.56,9.589e-05,2]
[344504336,1733519490760,-1355.71,9.589e-05,2]
[344504337,1733519490771,-856.1,9.589e-05,2]
[344504338,1733519490780,-500.0,9.589e-05,2]
[344504339,1733519490790,-528.2,9.589e-05,2]
[344504340,1733519490799,-792.56,9.589e-05,2]
[344504341,1733519490808,-1355.71,9.589e-05,2]
[344504342,1733519490818,-856.1,9.589e-05,2]
[344504343,1733519490827,-528.2,9.589e-05,2]
[344504344,1733519490837,-500.0,9.589e-05,2]
[344504345,1733519490847,-255.75033956,9.589e-05,2]
[344504346,1733519491002,-536.80966044,9.589e-05,2]
[344504347,1733519491012,-1355.71,9.589e-05,2]
[344504348,1733519491021,-548.19,9.589e-05,2]
[344504349,1733519491031,-856.1,9.589e-05,2]
[344504350,1733519491040,-528.2,9.589e-05,2]
[344504351,1733519491050,-1355.71,9.589e-05,2]
[344504352,1733519491059,-548.19,9.589e-05,2]
[344504353,1733519491070,-500.0,9.589e-05,2]
[344504354,1733519491080,-856.1,9.589e-05,2]
[344504355,1733519491090,-528.2,9.589e-05,2]
[344504356,1733519491100,-1355.71,9.589e-05,2]
[344504357,1733519491110,-500.0,9.589e-05,2]
[344504358,1733519491119,-548.19,9.589e-05,2]
[344504359,1733519491129,-500.0,9.589e-05,2]
[344504360,1733519491140,-856.1,9.589e-05,2]
[344504361,1733519491149,-528.2,9.589e-05,2]
[344504362,1733519491159,-1355.71,9.589e-05,2]
[344504363,1733519491170,-500.0,9.589e-05,2]
[344504364,1733519491179,-548.19,9.589e-05,2]
[344504365,1733519491189,-13.92789964,9.589e-05,2]
[344504366,1733519491751,598.51,9.02e-05,10]
[344504370,1733520367092,1000.0,7e-05,2]
[344504373,1733520503586,5686010.05389449,0.0002,120]
[344504381,1733520631423,-772.09451467,7.677e-05,2]
[344504386,1733520631503,-1128.79949632,7.677e-05,2]
[344504387,1733520631513,-253.73872083,7.677e-05,2]
[344504388,1733520631523,-338.31829444,7.678e-05,2]
[344504389,1733520631536,-253.73872083,7.678e-05,2]
[344504390,1733520631549,-451.09105925,7.678e-05,2]
[344504391,1733520631558,-4.61370833,7.678e-05,2]
[344504392,1733520631569,-195.38629167,7.678e-05,2]
[344504393,1733520631579,-200.0,7.678e-05,2]
[344504394,1733520631588,-197.53371589,7.678e-05,2]
[344504395,1733520631599,-253.55734336,7.678e-05,2]
[344504396,1733520631608,-253.73872083,7.679e-05,2]
[344504397,1733520631618,-36.24036931,7.679e-05,2]
[344504398,1733520631628,-765.69929158,7.679e-05,2]
[344504399,1733520631638,-2534.52534799,7.679e-05,2]
[344504400,1733520631647,-253.73872083,7.679e-05,2]
[344504401,1733520631656,-200.0,7.679e-05,2]
[344504402,1733520631666,-2534.52534799,7.68e-05,2]
[344504403,1733520631675,-801.93966089,7.68e-05,2]
[344504404,1733520631684,-451.09105925,7.681e-05,2]
[344504405,1733520631693,-551.23557871,7.681e-05,2]
[344504406,1733520631721,-498.92723845,7.681e-05,2]
[344504407,1733520631745,-850.73119383,7.681e-05,2]
[344504408,1733520631754,-12.06758543,7.682e-05,2]
[344504409,1733520631765,-1413.60292282,7.682e-05,2]
[344504410,1733520631776,-1425.67050825,7.683e-05,2]
[344504412,1733520631785,-801.93966089,7.683e-05,2]
[344504414,1733520631795,-1425.67050825,7.684e-05,2]
[344504415,1733520631804,-1069.25288118,7.684e-05,2]
[344504416,1733520631813,-1425.67050825,7.684e-05,2]
[344504417,1733520631822,-451.09105925,7.684e-05,2]
[344504418,1733520631831,-2534.52534799,7.684e-05,2]
[344504419,1733520631840,-200.0,7.684e-05,2]
[344504420,1733520631849,-200.0,7.684e-05,2]
[344504422,1733520631859,-601.45474567,7.685e-05,2]
[344504424,1733520631868,-200.0,7.685e-05,2]
[344504426,1733520631879,-1069.25288118,7.686e-05,2]
[344504427,1733520631888,-1425.67050825,7.687e-05,2]
[344504428,1733520631899,-200.0,7.688e-05,2]
[344504429,1733520631909,-1069.25288118,7.688e-05,2]
[344504430,1733520631918,-200.0,7.688e-05,2]
[344504431,1733520631928,-2534.52534799,7.688e-05,2]
[344504432,1733520631939,-601.45474567,7.688e-05,2]
[344504433,1733520631950,-200.0,7.688e-05,2]
[344504434,1733520631960,-1425.67050825,7.689e-05,2]
[344504435,1733520631970,-338.31829444,7.689e-05,2]
[344504436,1733520631980,-801.93966089,7.689e-05,2]
[344504437,1733520631989,-1900.89401099,7.69e-05,2]
[344504438,1733520631998,-801.93966089,7.69e-05,2]
[344504439,1733520632008,-1900.89401099,7.691e-05,2]
[344504440,1733520632017,-801.93966089,7.691e-05,2]
[344504441,1733520632028,-200.0,7.691e-05,2]
[344504442,1733520632038,-200.0,7.691e-05,2]
[344504443,1733520632047,-200.0,7.692e-05,2]
[344504444,1733520632056,-1900.89401099,7.692e-05,2]
[344504445,1733520632065,-338.31829444,7.693e-05,2]
[344504446,1733520632075,-200.0,7.693e-05,2]
[344504447,1733520632085,-200.0,7.693e-05,2]
[344504448,1733520632097,-601.45474567,7.693e-05,2]
[344504449,1733520632106,-451.09105925,7.693e-05,2]
[344504450,1733520632115,-1900.89401099,7.694e-05,2]
[344504451,1733520632124,-200.0,7.694e-05,2]
[344504452,1733520632134,-200.0,7.694e-05,2]
[344504453,1733520632143,-451.09105925,7.694e-05,2]
[344504454,1733520632152,-200.0,7.695e-05,2]
[344504455,1733520632161,-253.73872083,7.695e-05,2]
[344504456,1733520632171,-338.31829444,7.695e-05,2]
[344504457,1733520632181,-200.0,7.695e-05,2]
[344504458,1733520632190,-601.45474567,7.696e-05,2]
[344504459,1733520632199,-2534.52534799,7.696e-05,2]
[344504460,1733520632208,-200.0,7.697e-05,2]
[344504461,1733520632217,-2534.52534799,7.698e-05,2]
[344504462,1733520632226,-1069.25288118,7.698e-05,2]
[344504463,1733520632236,-338.31829444,7.698e-05,2]
[344504464,1733520632248,-601.45474567,7.699e-05,2]
[344504465,1733520632257,-338.31829444,7.699e-05,2]
[344504466,1733520632266,-1069.25288118,7.699e-05,2]
[344504467,1733520632277,-601.45474567,7.699e-05,2]
[344504468,1733520632287,-1069.25288118,7.699e-05,2]
[344504469,1733520632296,-253.73872083,7.699e-05,2]
[344504470,1733520632305,-200.0,7.699e-05,2]
[344504471,1733520632316,-200.0,7.7e-05,2]
[344504472,1733520632327,-200.0,7.7e-05,2]
[344504473,1733520632336,-250.0,7.748e-05,2]
[344504474,1733520632345,-250.0,7.786e-05,2]
[344504475,1733520632354,-342.77117435,7.786e-05,2]
[344504476,1733520632363,-343.48,7.975e-05,2]
[344504477,1733520632373,-284.58,7.976e-05,2]
[344504478,1733520632382,-250.0,7.993e-05,2]
[344504479,1733520632391,-150.0,8.043e-05,2]
[344504480,1733520632400,-500.0,8.187e-05,3]
[344504481,1733520632409,-300.0,8.218e-05,2]
[344504482,1733520632419,-504.81,8.219e-05,2]
[344504483,1733520632428,-346.14,8.219e-05,2]
[344504484,1733520632437,-1000.0,8.219e-05,2]
[344504485,1733520632446,-2984.97,8.219e-05,2]
[344504486,1733520632457,-170.257032,8.255e-05,2]
[344504487,1733520632466,-509.4,8.349e-05,2]
[344504488,1733520632476,-169.49,8.378e-05,2]
[344504489,1733520632486,-496.6,8.382e-05,2]
[344504490,1733520632495,-496.92,8.425e-05,2]
[344504491,1733520632505,-499.12,8.483e-05,2]
[344504492,1733520632514,-586.98,8.513e-05,2]
[344504493,1733520632523,-506.12,8.56e-05,2]
[344504494,1733520632532,-508.95,8.663e-05,2]
[344504495,1733520632542,-170.257032,8.667e-05,2]
[344504496,1733520632551,-200.0,8.783e-05,2]
[344504497,1733520632560,-2200.0,8.8e-05,3]
[344504498,1733520632569,-169.49,8.844e-05,2]
[344504499,1733520632578,-1000.0,8.863e-05,2]
[344504500,1733520632587,-150.0,8.863e-05,2]
[344504501,1733520632597,-999.99,8.864e-05,2]
[344504502,1733520632606,-9351.27,8.864e-05,2]
[344504503,1733520632615,-9999.99,8.864e-05,2]
[344504504,1733520632624,-150.99,8.864e-05,2]
[344504505,1733520632633,-2394.6,8.864e-05,2]
[344504506,1733520632642,-299.99,8.864e-05,2]
[344504507,1733520632651,-9881.2,8.864e-05,2]
[344504508,1733520632660,-150.99,8.864e-05,2]
[344504509,1733520632669,-736.39,8.864e-05,2]
[344504510,1733520632679,-4248.72736546,8.9e-05,3]
[344504511,1733520632707,-151.27263454,8.9e-05,3]
[344504512,1733520632717,-2500.0,8.9e-05,2]
[344504513,1733520632726,-343.48,8.971e-05,2]
[344504514,1733520632735,-1421.00454953,8.999e-05,2]
[344504515,1733520632746,-645.8805,8.999e-05,2]
[344504516,1733520632756,-962.99793855,8.999e-05,2]
[344504517,1733520632767,-951.72,8.999e-05,2]
[344504518,1733520632779,-1137.075,8.999e-05,2]
[344504519,1733520637356,-2050.63584299,8.999e-05,2]
[344504520,1733520637365,-10073.75369142,9e-05,2]
[344504521,1733520637375,-7648.2107322,9e-05,2]
[344504522,1733520637385,-98892.81378518,9e-05,2]
[344504523,1733520637497,-3313.5997,9e-05,2]
[344504524,1733520637581,-4790.79363746,9e-05,2]
[344504525,1733520637660,-1278.20875913,9e-05,2]
[344504526,1733520637740,-4334.937255,9e-05,2]
[344504527,1733520637751,-1300.0,9e-05,2]
[344504535,1733520639330,-254.65920354,9e-05,2]
[344504536,1733520639551,-669.99000012,9e-05,2]
[344504540,1733520642376,-40329.9777501,9e-05,2]
[344504541,1733520642385,-28000.0,9e-05,2]
[344504542,1733520642395,-6600.0,9e-05,3]
[344504543,1733520642404,-4494.52342922,9e-05,2]
[344504544,1733520642414,-420.0,9.04e-05,2]
[344504545,1733520642424,-435.5,9.041e-05,2]
[344504546,1733520642433,-646.899,9.11e-05,2]
[344504547,1733520642442,-150.0,9.178e-05,2]
[344504548,1733520642451,-150.0,9.178e-05,2]
[344504549,1733520642463,-1000.0,9.247e-05,2]
[344504550,1733520642473,-169.49,9.309e-05,2]
[344504551,1733520642482,-218.1233,9.356e-05,2]
[344504552,1733520642491,-310.252,9.356e-05,2]
[344504553,1733520642501,-1133.2312,9.356e-05,2]
[344504554,1733520642510,-2500.0,9.356e-05,2]
[344504555,1733520642520,-929.6534,9.356e-05,2]
[344504556,1733520642530,-10673.34691208,9.389e-05,2]
[344504557,1733520642540,-150.0,9.437e-05,2]
[344504558,1733520642549,-235.62948377,9.455e-05,2]
[344504559,1733520642558,-521.79902926,9.455e-05,2]
[344504560,1733520642567,-187.67250344,9.455e-05,2]
[344504561,1733520642576,-199.53874259,9.455e-05,2]
[344504562,1733520642585,-19850.0,9.456e-05,2]
[344504563,1733520642594,-2135687.21976921,9.456e-05,2]
[344504564,1733520642603,-1574.184,9.457e-05,2]
[344504565,1733520642612,-184.881,9.457e-05,2]
[344504566,1733520642620,-1893.0,9.458e-05,2]
[344504567,1733520642630,-563.0,9.458e-05,2]
[344504568,1733520642639,-816.0,9.458e-05,2]
[344504569,1733520642648,-3761.0,9.458e-05,2]
[344504570,1733520642657,-1252.0,9.458e-05,2]
[344504571,1733520642666,-3529.0,9.458e-05,2]
[344504572,1733520642675,-973.0,9.458e-05,2]
[344504573,1733520642686,-535.0,9.458e-05,2]
[344504574,1733520642695,-1262.0,9.458e-05,2]
[344504575,1733520642703,-150.0,9.458e-05,2]
[344504576,1733520642712,-151.0,9.458e-05,2]
[344504577,1733520642721,-484.962,9.458e-05,2]
[344504578,1733520642730,-567.0,9.458e-05,2]
[344504579,1733520642741,-28514.5568,9.489e-05,2]
[344504580,1733520642750,-166.39947056,9.499e-05,2]
[344504581,1733520642759,-166.39947056,9.499e-05,2]
[344504582,1733520642767,-166.39947056,9.499e-05,2]
[344504583,1733520642776,-10237.23162431,9.5e-05,2]
[344504584,1733520642787,-586.98,9.577e-05,2]
[344504585,1733520642797,-858.88,9.588e-05,2]
[344504586,1733520642806,-508342.91724811,9.589e-05,2]
[344504587,1733520642815,-36561.52308048,9.589e-05,2]
[344504588,1733520642824,-500.0,9.589e-05,2]
[344504590,1733520642833,-500.0,9.589e-05,2]
[344504592,1733520642841,-500.0,9.589e-05,2]
[344504594,1733520642850,-607.8049163,9.589e-05,2]
[344504596,1733520642859,-500.0,9.589e-05,2]
[344504598,1733520642869,-500.0,9.589e-05,2]
[344504600,1733520642878,-402.28976929,9.589e-05,2]
[344504602,1733520642886,-409.15237611,9.589e-05,2]
[344504604,1733520642895,-501.32267871,9.589e-05,2]
[344504606,1733520642904,-501.15758888,9.589e-05,2]
[344504608,1733520642913,-500.0,9.589e-05,2]
[344504610,1733520642922,-500.0,9.589e-05,2]
[344504612,1733520642931,-500.0,9.589e-05,2]
[344504614,1733520642940,-295.17746754,9.589e-05,2]
[344504616,1733520642949,-170.79313695,9.589e-05,2]
[344504618,1733520642958,-500.0,9.589e-05,2]
[344504620,1733520642967,-500.0,9.589e-05,2]
[344504622,1733520642976,-500.0,9.589e-05,2]
[344504624,1733520642986,-500.0,9.589e-05,2]
[344504626,1733520642995,-500.0,9.589e-05,2]
[344504628,1733520643005,-500.0,9.589e-05,2]
[344504630,1733520643014,-500.0,9.589e-05,2]
[344504632,1733520643024,-500.0,9.589e-05,2]
[344504634,1733520643037,-500.0,9.589e-05,2]
[344504636,1733520643047,-500.0,9.589e-05,2]
[344504638,1733520643056,-500.0,9.589e-05,2]
[344504640,1733520643066,-444.31216688,9.589e-05,2]
[344504642,1733520643075,-500.0,9.589e-05,2]
[344504644,1733520643084,-500.0,9.589e-05,2]
[344504646,1733520643093,-522.68013759,9.589e-05,2]
[344504648,1733520643102,-500.0,9.589e-05,2]
[344504650,1733520643114,-500.0,9.589e-05,2]
[344504652,1733520643127,-500.0,9.589e-05,2]
[344504654,1733520643137,-212.24466455,9.589e-05,2]
[344504656,1733520643146,-500.0,9.589e-05,2]
[344504658,1733520643156,-516.43752252,9.589e-05,2]
[344504660,1733520643165,-500.0,9.589e-05,2]
[344504661,1733520643174,-500.0,9.589e-05,2]
[344504663,1733520643183,-500.0,9.589e-05,2]
[344504665,1733520643192,-603.01235014,9.589e-05,2]
[344504667,1733520643201,-500.0,9.589e-05,2]
[344504669,1733520643210,-500.0,9.589e-05,2]
[344504671,1733520643219,-500.0,9.589e-05,2]
[344504673,1733520643228,-500.0,9.589e-05,2]
[344504675,1733520643238,-500.0,9.589e-05,2]
[344504677,1733520643250,-285.41526329,9.589e-05,2]
[344504678,1733520643259,-500.0,9.589e-05,2]
[344504679,1733520643268,-500.10111686,9.589e-05,2]
[344504680,1733520643277,-541.55067787,9.589e-05,2]
[344504681,1733520643290,-500.0,9.589e-05,2]
[344504682,1733520643299,-560.271757,9.589e-05,2]
[344504683,1733520643308,-500.0,9.589e-05,2]
[344504684,1733520643318,-500.0,9.589e-05,2]
[344504685,1733520643333,-500.0,9.589e-05,2]
[344504686,1733520643344,-500.0,9.589e-05,2]
[344504687,1733520643354,-500.0,9.589e-05,2]
[344504688,1733520643366,-500.0,9.589e-05,2]
[344504689,1733520643376,-500.0,9.589e-05,2]
[344504690,1733520643385,-500.0,9.589e-05,2]
[344504691,1733520643394,-500.0,9.589e-05,2]
[344504692,1733520643404,-211.5531147,9.589e-05,2]
[344504693,1733520643413,-500.0,9.589e-05,2]
[344504694,1733520643422,-618.06102598,9.589e-05,2]
[344504695,1733520643430,-500.0,9.589e-05,2]
[344504696,1733520643440,-637.42285081,9.589e-05,2]
[344504697,1733520643450,-500.0,9.589e-05,2]
[344504698,1733520643459,-500.0,9.589e-05,2]
[344504699,1733520643468,-500.0,9.589e-05,2]
[344504700,1733520643477,-500.0,9.589e-05,2]
[344504701,1733520643486,-398.69750776,9.589e-05,2]
[344504702,1733520643495,-500.0,9.589e-05,2]
[344504703,1733520643504,-500.0,9.589e-05,2]
[344504704,1733520643513,-182.02870131,9.589e-05,2]
[344504705,1733520643522,-500.0,9.589e-05,2]
[344504706,1733520643533,-500.0,9.589e-05,2]
[344504707,1733520643542,-500.0,9.589e-05,2]
[344504708,1733520643552,-500.0,9.589e-05,2]
[344504709,1733520643561,-500.0,9.589e-05,2]
[344504710,1733520643570,-500.0,9.589e-05,2]
[344504711,1733520643579,-500.0,9.589e-05,2]
[344504712,1733520643588,-500.0,9.589e-05,2]
[344504713,1733520643597,-499.73039444,9.589e-05,2]
[344504714,1733520643606,-500.0,9.589e-05,2]
[344504715,1733520643615,-500.0,9.589e-05,2]
[344504716,1733520643624,-500.0,9.589e-05,2]
[344504717,1733520643633,-500.0,9.589e-05,2]
[344504718,1733520643642,-500.0,9.589e-05,2]
[344504719,1733520643652,-500.0,9.589e-05,2]
[344504720,1733520643661,-500.0,9.589e-05,2]
[344504721,1733520643670,-500.0,9.589e-05,2]
[344504722,1733520643680,-500.0,9.589e-05,2]
[344504723,1733520643689,-500.0,9.589e-05,2]
[344504724,1733520643698,-500.0,9.589e-05,2]
[344504725,1733520643707,-500.0,9.589e-05,2]
[344504726,1733520643716,-500.0,9.589e-05,2]
[344504727,1733520643725,-500.0,9.589e-05,2]
[344504728,1733520643734,-500.0,9.589e-05,2]
[344504729,1733520643743,-500.0,9.589e-05,2]
[344504730,1733520643753,-500.0,9.589e-05,2]
[344504731,1733520643762,-500.0,9.589e-05,2]
[344504732,1733520643771,-500.0,9.589e-05,2]
[344504733,1733520643780,-500.0,9.589e-05,2]
[344504734,1733520643789,-500.0,9.589e-05,2]
[344504735,1733520643798,-500.0,9.589e-05,2]
[344504736,1733520643807,-500.0,9.589e-05,2]
[344504737,1733520643816,-500.0,9.589e-05,2]
[344504738,1733520643825,-500.0,9.589e-05,2]
[344504739,1733520643835,-500.0,9.589e-05,2]
[344504740,1733520643844,-500.0,9.589e-05,2]
[344504741,1733520643853,-500.0,9.589e-05,2]
[344504742,1733520643862,-500.0,9.589e-05,2]
[344504743,1733520643871,-513.942689,9.589e-05,2]
[344504744,1733520643882,-556.00059048,9.589e-05,2]
[344504745,1733520643892,-500.0,9.589e-05,2]
[344504746,1733520643901,-500.0,9.589e-05,2]
[344504747,1733520643910,-270.56168064,9.589e-05,2]
[344504748,1733520643919,-500.0,9.589e-05,2]
[344504749,1733520643928,-500.0,9.589e-05,2]
[344504750,1733520643937,-500.0,9.589e-05,2]
[344504751,1733520643946,-500.0,9.589e-05,2]
[344504752,1733520643956,-500.0,9.589e-05,2]
[344504753,1733520643965,-500.0,9.589e-05,2]
[344504754,1733520643977,-500.0,9.589e-05,2]
[344504755,1733520643986,-500.0,9.589e-05,2]
[344504756,1733520643995,-500.0,9.589e-05,2]
[344504757,1733520644004,-500.0,9.589e-05,2]
[344504758,1733520644014,-500.0,9.589e-05,2]
[344504759,1733520644023,-500.0,9.589e-05,2]
[344504760,1733520644033,-500.0,9.589e-05,2]
[344504761,1733520644042,-500.0,9.589e-05,2]
[344504762,1733520644051,-500.0,9.589e-05,2]
[344504763,1733520644060,-500.0,9.589e-05,2]
[344504764,1733520644069,-500.0,9.589e-05,2]
[344504765,1733520644079,-500.0,9.589e-05,2]
[344504766,1733520644088,-500.0,9.589e-05,2]
[344504767,1733520644097,-500.0,9.589e-05,2]
[344504768,1733520644106,-500.0,9.589e-05,2]
[344504769,1733520644115,-500.0,9.589e-05,2]
[344504770,1733520644124,-500.0,9.589e-05,2]
[344504771,1733520644134,-500.0,9.589e-05,2]
[344504772,1733520644143,-687.12,9.589e-05,2]
[344504773,1733520644152,-591.83208232,9.589e-05,2]
[344504774,1733520644160,-500.0,9.589e-05,2]
[344504775,1733520644170,-687.12,9.589e-05,2]
[344504776,1733520644179,-500.0,9.589e-05,2]
[344504777,1733520644188,-687.12,9.589e-05,2]
[344504778,1733520644197,-500.0,9.589e-05,2]
[344504779,1733520644206,-687.12,9.589e-05,2]
[344504780,1733520644215,-500.0,9.589e-05,2]
[344504781,1733520644225,-687.12,9.589e-05,2]
[344504782,1733520644235,-610.85716623,9.589e-05,2]
[344504783,1733520644248,-687.12,9.589e-05,2]
[344504784,1733520644257,-687.12,9.589e-05,2]
[344504785,1733520644267,-687.12,9.589e-05,2]
[344504786,1733520644276,-687.12,9.589e-05,2]
[344504787,1733520644287,-687.12,9.589e-05,2]
[344504788,1733520644296,-687.12,9.589e-05,2]
[344504789,1733520644306,-687.12,9.589e-05,2]
[344504790,1733520644315,-687.12,9.589e-05,2]
[344504791,1733520644326,-687.12,9.589e-05,2]
[344504792,1733520644335,-687.12,9.589e-05,2]
[344504793,1733520644345,-687.12,9.589e-05,2]
[344504794,1733520644354,-206.12146201,9.589e-05,2]
[344504795,1733520644364,-687.12,9.589e-05,2]
[344504796,1733520644373,-687.12,9.589e-05,2]
[344504797,1733520644383,-687.12,9.589e-05,2]
[344504798,1733520644392,-500.0,9.589e-05,2]
[344504799,1733520644402,-687.12,9.589e-05,2]
[344504800,1733520644411,-687.12,9.589e-05,2]
[344504801,1733520644422,-687.12,9.589e-05,2]
[344504802,1733520644432,-687.12,9.589e-05,2]
[344504803,1733520644441,-687.14593589,9.589e-05,2]
[344504804,1733520644451,-500.0,9.589e-05,2]
[344504805,1733520644460,-500.0,9.589e-05,2]
[344504806,1733520644470,-500.0,9.589e-05,2]
[344504807,1733520644479,-500.0,9.589e-05,2]
[344504808,1733520644488,-500.0,9.589e-05,2]
[344504809,1733520644499,-1079.84,9.589e-05,2]
[344504810,1733520644509,-1079.84,9.589e-05,2]
[344504811,1733520644518,-1079.84,9.589e-05,2]
[344504812,1733520644527,-1079.84,9.589e-05,2]
[344504813,1733520644539,-1079.84,9.589e-05,2]
[344504814,1733520644547,-1079.84,9.589e-05,2]